[Event "WSCC 50 Open 2017"]
[Site "?"]
[Date "2017.11.18"]
[Round "11"]
[White "Welling, Gerard"]
[Black "Mantovani, Renzo"]
[Result "1-0"]
[ECO "B00"]
[WhiteElo "2316"]
[BlackElo "2307"]
[PlyCount "63"]
[EventDate "2017.??.??"]
[EventType "swiss"]
[EventCountry "ITA"]
[SourceTitle "Acqui Terme"]
[TimeControl "40/5400+30:1800+30"]
[WhiteClock "0:13:01"]
[BlackClock "0:04:52"]

1. e4 {[%emt 0:00:00]} d6 {[%emt 0:00:32]} 2. Nc3 {[%emt 0:00:16]} a6 {[%emt 0:06:06]} 3. a4 {[%emt 0:02:08]} c5 {[%emt 0:07:17]} 4. g3 {[%emt 0:00:23]} g6 {[%emt 0:02:04]} 5. Bg2 {[%emt 0:00:18]} Bg7 {[%emt 0:00:06]} 6. d3 {[%emt 0:00:08]} Nf6 {[%emt 0:01:31]} 7. f4 {[%emt 0:01:50]} Nc6 {[%emt 0:00:31]} 8. Nf3 {[%emt 0:00:06]} Rb8 {[%emt 0:01:30]} 9. O-O {[%emt 0:00:14]} b5 {[%emt 0:00:44]} 10. axb5 {[%emt 0:00:49]} axb5 {[%emt 0:00:04]} 11. h3 {[%emt 0:32:53]} O-O {[%emt 0:02:46]} 12. g4 {[%emt 0:01:39]} Ne8 {[%emt 0:06:00]} 13. Ne2 {[%emt 0:05:07]} Nc7 {[%emt 0:00:39]} 14. f5 {[%emt 0:04:16]} b4 {[%emt 0:02:06]} 15. Qe1 {[%emt 0:07:57]} Nb5 {[%emt 0:03:17]} 16. Qh4 {[%emt 0:05:24]} Nbd4 {[%emt 0:05:55]} 17. Nexd4 {[%emt 0:01:33]} Nxd4 {[%emt 0:00:19]} 18. Nxd4 {[%emt 0:01:44]} cxd4 {[%emt 0:07:52]} 19. Bh6 {[%emt 0:07:27]} b3 {[%emt 0:09:56]} 20. cxb3 {[%emt 0:07:25]} Rxb3 {[%emt 0:02:42]} 21. g5 {[%emt 0:03:38]} gxf5 {[%emt 0:20:39]} 22. exf5 {[%emt 0:00:49]} Rxb2 {[%emt 0:15:45]} 23. Bxg7 {[%emt 0:01:56]} Kxg7 {[%emt 0:00:11]} 24. f6+ {[%emt 0:01:28]} exf6 {[%emt 0:00:19]} 25. gxf6+ {[%emt 0:00:03]} Kh8 {[%emt 0:00:14]} 26. Be4 {[%emt 0:00:02]} Rg8+ {[%emt 0:00:17]} 27. Kh1 {[%emt 0:00:02]} Rg6 {[%emt 0:00:17]} 28. Ra8 {[%emt 0:02:18]} Qc7 {[%emt 0:00:33]} 29. Rxc8+ {[%emt 0:00:34]} Qxc8 {[%emt 0:00:04]} 30. Bxg6 {[%emt 0:00:07]} fxg6 {[%emt 0:00:29]} 31. f7 {[%emt 0:00:14]} Kg7 {[%emt 0:00:23]} 32. Qxd4+ {[%emt 0:00:11]} 1-0

[Event "WSCC 50 Open 2017"]
[Site "?"]
[Date "2017.11.18"]
[Round "11"]
[White "Certek, Pavel"]
[Black "Reprintsev, Alexander"]
[Result "0-1"]
[ECO "D08"]
[WhiteElo "2295"]
[BlackElo "2361"]
[PlyCount "86"]
[EventDate "2017.??.??"]
[EventType "swiss"]
[EventCountry "ITA"]
[SourceTitle "Acqui Terme"]
[TimeControl "40/5400+30:1800+30"]
[WhiteClock "0:10:00"]
[BlackClock "1:06:59"]

1. d4 {[%emt 0:00:00]} d5 {[%emt 0:05:38]} 2. c4 {[%emt 0:00:07]} e5 {[%emt 0:00:29]} 3. dxe5 {[%emt 0:03:04]} d4 {[%emt 0:01:51]} 4. a3 {[%emt 0:01:46]} Nc6 {[%emt 0:00:25]} 5. e3 {[%emt 0:02:08]} Nge7 {[%emt 0:02:10]} 6. Nf3 {[%emt 0:00:38]} Bg4 {[%emt 0:01:04]} 7. Be2 {[%emt 0:01:11]} Bxf3 {[%emt 0:00:56]} 8. Bxf3 {[%emt 0:02:45]} dxe3 {[%emt 0:00:39]} 9. Qxd8+ {[%emt 0:05:10]} Rxd8 {[%emt 0:00:07]} 10. Bxe3 {[%emt 0:00:10]} Nxe5 {[%emt 0:00:07]} 11. Nd2 {[%emt 0:03:07]} Nf5 {[%emt 0:02:01]} 12. Ke2 {[%emt 0:03:17]} Nxe3 {[%emt 0:09:06]} 13. fxe3 {[%emt 0:03:34]} c6 {[%emt 0:00:13]} 14. b4 {[%emt 0:04:20]} Be7 {[%emt 0:00:17]} 15. b5 {[%emt 0:02:32]} O-O {[%emt 0:01:20]} 16. Ra2 {[%emt 0:08:28]} Rfe8 {[%emt 0:00:25]} 17. Rc1 {[%emt 0:00:25]} Nxf3 {[%emt 0:03:32]} 18. gxf3 {[%emt 0:01:03]} Rd6 {[%emt 0:00:06]} 19. Nf1 {[%emt 0:01:20]} Rg6 {[%emt 0:00:35]} 20. Kf2 {[%emt 0:03:17]} Rd8 {[%emt 0:01:59]} 21. Rcc2 {[%emt 0:01:39]} Kf8 {[%emt 0:01:14]} 22. a4 {[%emt 0:02:12]} Bb4 {[%emt 0:01:12]} 23. Rab2 {[%emt 0:04:32]} c5 {[%emt 0:00:49]} 24. Rb1 {[%emt 0:03:59]} Rd3 {[%emt 0:00:21]} 25. Ra1 {[%emt 0:00:58]} h5 {[%emt 0:00:40]} 26. Rcc1 {[%emt 0:01:21]} Rgd6 {[%emt 0:00:57]} 27. f4 {[%emt 0:02:58]} h4 {[%emt 0:00:57]} 28. Ke2 {[%emt 0:04:01]} Rb3 {[%emt 0:00:25]} 29. Rab1 {[%emt 0:12:27]} Ra3 {[%emt 0:00:14]} 30. Ra1 {[%emt 0:00:37]} Rdd3 {[%emt 0:00:15]} 31. Rxa3 {[%emt 0:02:53]} Rxa3 {[%emt 0:00:09]} 32. f5 {[%emt 0:04:57]} Rxa4 {[%emt 0:00:22]} 33. Kf3 {[%emt 0:00:09]} Ra3 {[%emt 0:00:33]} 34. h3 {[%emt 0:02:10]} a5 {[%emt 0:00:15]} 35. bxa6 {[%emt 0:00:19]} bxa6 {[%emt 0:00:04]} 36. Ke4 {[%emt 0:00:49]} a5 {[%emt 0:00:22]} 37. Rc2 {[%emt 0:04:06]} Ra1 {[%emt 0:00:44]} 38. Nh2 {[%emt 0:00:15]} Rh1 {[%emt 0:00:45]} 39. Kd5 {[%emt 0:00:55]} a4 {[%emt 0:00:24]} 40. e4 {[%emt 0:00:10]} Rd1+ {[%emt 0:30:42]} 41. Kc6 {[%emt 0:31:05]} Rd2 {[%emt 0:00:24]} 42. Rxd2 {[%emt 0:00:32]} Bxd2 {[%emt 0:00:02]} 43. Nf3 {[%emt 0:00:04]} Bc3 {[%emt 0:00:11]} 0-1

[Event "WSCC 50 Open 2017"]
[Site "?"]
[Date "2017.11.18"]
[Round "11"]
[White "Prasad, Devaki V"]
[Black "Brendel, Oliver"]
[Result "1/2-1/2"]
[ECO "B27"]
[WhiteElo "2290"]
[BlackElo "2334"]
[PlyCount "82"]
[EventDate "2017.??.??"]
[EventType "swiss"]
[EventCountry "ITA"]
[SourceTitle "Acqui Terme"]
[TimeControl "40/5400+30:1800+30"]
[WhiteClock "0:04:07"]
[BlackClock "0:01:37"]

1. e4 {[%emt 0:00:00]} c5 {[%emt 0:00:16]} 2. Nf3 {[%emt 0:00:00]} g6 {[%emt 0:00:16]} 3. d4 {[%emt 0:00:00]} cxd4 {[%emt 0:00:14]} 4. Nxd4 {[%emt 0:00:05]} Bg7 {[%emt 0:00:52]} 5. Nc3 {[%emt 0:00:13]} Nc6 {[%emt 0:00:16]} 6. Nb3 {[%emt 0:00:14]} Bxc3+ {[%emt 0:01:30]} 7. bxc3 {[%emt 0:00:08]} Nf6 {[%emt 0:00:09]} 8. Bd3 {[%emt 0:01:20]} d5 {[%emt 0:00:42]} 9. exd5 {[%emt 0:00:25]} Qxd5 {[%emt 0:00:11]} 10. O-O {[%emt 0:00:50]} Bf5 {[%emt 0:04:13]} 11. c4 {[%emt 0:03:31]} Qd7 {[%emt 0:00:14]} 12. Nc5 {[%emt 0:10:16]} Qc8 {[%emt 0:00:08]} 13. Bxf5 {[%emt 0:00:53]} Qxf5 {[%emt 0:02:13]} 14. Nxb7 {[%emt 0:01:30]} O-O {[%emt 0:05:25]} 15. Rb1 {[%emt 0:01:15]} Rfc8 {[%emt 0:16:50]} 16. h3 {[%emt 0:16:22]} Rc7 {[%emt 0:08:32]} 17. Be3 {[%emt 0:01:57]} Ne4 {[%emt 0:10:23]} 18. Qe1 {[%emt 0:14:33]} Rb8 {[%emt 0:15:44]} 19. Rb5 {[%emt 0:02:07]} Qe6 {[%emt 0:01:45]} 20. Nc5 {[%emt 0:03:51]} Qxc4 {[%emt 0:03:17]} 21. Rxb8+ {[%emt 0:02:07]} Nxb8 {[%emt 0:00:06]} 22. Qa5 {[%emt 0:01:59]} Rc8 {[%emt 0:07:18]} 23. Nxe4 {[%emt 0:00:21]} Qxe4 {[%emt 0:00:08]} 24. Qxa7 {[%emt 0:00:23]} Nc6 {[%emt 0:00:30]} 25. Qa6 {[%emt 0:06:39]} Rd8 {[%emt 0:00:57]} 26. c4 {[%emt 0:03:38]} f5 {[%emt 0:00:20]} 27. Re1 {[%emt 0:03:57]} Ne5 {[%emt 0:13:28]} 28. Bd2 {[%emt 0:06:12]} Qxc4 {[%emt 0:00:45]} 29. Qb6 {[%emt 0:03:34]} Rxd2 {[%emt 0:04:27]} 30. Qb8+ {[%emt 0:00:13]} Kf7 {[%emt 0:00:13]} 31. Qxe5 {[%emt 0:00:08]} Rd7 {[%emt 0:01:25]} 32. a3 {[%emt 0:00:53]} Qd5 {[%emt 0:01:09]} 33. Qh8 {[%emt 0:00:16]} h5 {[%emt 0:00:18]} 34. h4 {[%emt 0:01:24]} Qb3 {[%emt 0:02:02]} 35. Kh2 {[%emt 0:06:18]} Qxa3 {[%emt 0:00:50]} 36. Qh7+ {[%emt 0:02:08]} Kf6 {[%emt 0:00:02]} 37. Re3 {[%emt 0:02:56]} Rd3 {[%emt 0:00:10]} 38. Qh8+ {[%emt 0:01:07]} Kf7 {[%emt 0:00:06]} 39. Qh7+ {[%emt 0:01:22]} Kf6 {[%emt 0:00:05]} 40. Qh8+ {[%emt 0:00:18]} Kf7 {[%emt 0:30:06]} 41. Qh7+ {[%emt 0:31:00]} Kf6 {[%emt 0:01:48]} 1/2-1/2

[Event "WSCC 50 Open 2017"]
[Site "?"]
[Date "2017.11.18"]
[Round "11"]
[White "Fritsch, Rolf"]
[Black "Spiess, Thomas"]
[Result "1-0"]
[ECO "D00"]
[WhiteElo "2213"]
[BlackElo "2009"]
[PlyCount "67"]
[EventDate "2017.??.??"]
[EventType "swiss"]
[EventCountry "ITA"]
[SourceTitle "Acqui Terme"]
[TimeControl "40/5400+30:1800+30"]
[WhiteClock "0:04:31"]
[BlackClock "0:01:43"]

1. d4 {[%emt 0:00:00]} d5 {[%emt 0:00:06]} 2. Bf4 {[%emt 0:00:00]} Nf6 {[%emt 0:00:49]} 3. e3 {[%emt 0:00:00]} c5 {[%emt 0:00:07]} 4. c3 {[%emt 0:00:00]} Nc6 {[%emt 0:00:23]} 5. Nd2 {[%emt 0:00:14]} Bf5 {[%emt 0:01:24]} 6. Qb3 {[%emt 0:05:45]} Qc8 {[%emt 0:33:35]} 7. dxc5 {[%emt 0:05:17]} e5 {[%emt 0:00:48]} 8. Bg5 {[%emt 0:02:10]} Be6 {[%emt 0:12:02]} 9. Bxf6 {[%emt 0:20:57]} gxf6 {[%emt 0:00:02]} 10. e4 {[%emt 0:04:37]} d4 {[%emt 0:04:58]} 11. Bc4 {[%emt 0:02:31]} Bxc5 {[%emt 0:04:48]} 12. Ngf3 {[%emt 0:16:10]} O-O {[%emt 0:07:44]} 13. Bxe6 {[%emt 0:04:02]} fxe6 {[%emt 0:09:19]} 14. cxd4 {[%emt 0:06:04]} Bxd4 {[%emt 0:03:17]} 15. O-O {[%emt 0:00:24]} Qd7 {[%emt 0:00:49]} 16. Nc4 {[%emt 0:04:41]} Kh8 {[%emt 0:01:15]} 17. a4 {[%emt 0:03:38]} Rg8 {[%emt 0:01:59]} 18. Rad1 {[%emt 0:03:41]} Rg4 {[%emt 0:01:40]} 19. Rfe1 {[%emt 0:02:54]} Rag8 {[%emt 0:00:40]} 20. g3 {[%emt 0:00:30]} h5 {[%emt 0:01:37]} 21. Kf1 {[%emt 0:00:37]} Qg7 {[%emt 0:05:35]} 22. Ne3 {[%emt 0:04:56]} Bxe3 {[%emt 0:05:15]} 23. Rxe3 {[%emt 0:01:05]} h4 {[%emt 0:00:58]} 24. Qxe6 {[%emt 0:01:12]} hxg3 {[%emt 0:00:21]} 25. hxg3 {[%emt 0:00:12]} Qh6 {[%emt 0:01:25]} 26. Rd7 {[%emt 0:04:07]} Nd4 {[%emt 0:01:45]} 27. Nxd4 {[%emt 0:00:48]} exd4 {[%emt 0:00:01]} 28. Rxd4 {[%emt 0:00:16]} Qh1+ {[%emt 0:01:05]} 29. Ke2 {[%emt 0:00:09]} R4g6 {[%emt 0:00:34]} 30. e5 {[%emt 0:02:21]} Qh5+ {[%emt 0:00:32]} 31. Kd2 {[%emt 0:01:38]} Qg5 {[%emt 0:00:16]} 32. Rh4+ {[%emt 0:00:55]} Rh6 {[%emt 0:00:05]} 33. Rxh6+ {[%emt 0:00:30]} Qxh6 {[%emt 0:00:03]} 34. Qxf6+ {[%emt 0:00:08]} 1-0

[Event "WSCC 50 Open 2017"]
[Site "?"]
[Date "2017.11.18"]
[Round "11"]
[White "Biro, Sandor"]
[Black "Astengo, Marcello"]
[Result "1-0"]
[ECO "C02"]
[WhiteElo "2168"]
[BlackElo "1997"]
[PlyCount "62"]
[EventDate "2017.??.??"]
[EventType "swiss"]
[EventCountry "ITA"]
[SourceTitle "Acqui Terme"]
[TimeControl "40/5400+30:1800+30"]
[WhiteClock "0:01:59"]
[BlackClock "0:30:27"]

1. e4 {[%emt 0:00:00]} e6 {[%emt 0:01:23]} 2. d4 {[%emt 0:00:08]} d5 {[%emt 0:00:08]} 3. e5 {[%emt 0:00:04]} c5 {[%emt 0:00:09]} 4. c3 {[%emt 0:00:05]} Nc6 {[%emt 0:00:40]} 5. Nf3 {[%emt 0:00:10]} Qb6 {[%emt 0:01:38]} 6. a3 {[%emt 0:00:21]} Bd7 {[%emt 0:03:46]} 7. b4 {[%emt 0:00:51]} c4 {[%emt 0:03:57]} 8. a4 {[%emt 0:12:08]} f6 {[%emt 0:13:56]} 9. Be2 {[%emt 0:07:24]} fxe5 {[%emt 0:02:56]} 10. dxe5 {[%emt 0:00:25]} Qc7 {[%emt 0:05:38]} 11. O-O {[%emt 0:02:02]} Nxe5 {[%emt 0:10:23]} 12. Nxe5 {[%emt 0:01:33]} Qxe5 {[%emt 0:00:03]} 13. Re1 {[%emt 0:00:20]} Qf6 {[%emt 0:01:03]} 14. Bh5+ {[%emt 0:11:56]} Kd8 {[%emt 0:25:31]} 15. Nd2 {[%emt 0:12:00]} Qxc3 {[%emt 0:14:02]} 16. Rb1 {[%emt 0:05:25]} Nf6 {[%emt 0:03:48]} 17. Bb2 {[%emt 0:26:52]} Qd3 {[%emt 0:00:06]} 18. Re3 {[%emt 0:06:25]} Qf5 {[%emt 0:00:06]} 19. Re5 {[%emt 0:01:22]} Qd3 {[%emt 0:02:04]} 20. Re3 {[%emt 0:02:34]} Qf5 {[%emt 0:00:07]} 21. g4 {[%emt 0:00:45]} Qf4 {[%emt 0:04:28]} 22. Rf3 {[%emt 0:03:40]} Qh6 {[%emt 0:01:24]} 23. Nf1 {[%emt 0:02:45]} Nxh5 {[%emt 0:00:49]} 24. gxh5 {[%emt 0:00:10]} Bd6 {[%emt 0:02:52]} 25. Bc1 {[%emt 0:00:37]} g5 {[%emt 0:00:03]} 26. h4 {[%emt 0:00:30]} Kc7 {[%emt 0:00:32]} 27. Ng3 {[%emt 0:01:06]} Rhg8 {[%emt 0:01:07]} 28. Qd4 {[%emt 0:00:56]} Raf8 {[%emt 0:00:31]} 29. hxg5 {[%emt 0:00:20]} Rxg5 {[%emt 0:00:23]} 30. Rxf8 {[%emt 0:00:21]} Bxf8 {[%emt 0:01:20]} 31. Qf4+ {[%emt 0:00:16]} Bd6 {[%emt 0:00:00]} 1-0

[Event "WSCC 50 Open 2017"]
[Site "?"]
[Date "2017.11.18"]
[Round "11"]
[White "Cetinkaya, Vedat Ali"]
[Black "Grant, Jonathan I M"]
[Result "0-1"]
[ECO "A46"]
[WhiteElo "1968"]
[BlackElo "2179"]
[PlyCount "44"]
[EventDate "2017.??.??"]
[EventType "swiss"]
[EventCountry "ITA"]
[SourceTitle "Acqui Terme"]
[TimeControl "40/5400+30:1800+30"]
[WhiteClock "0:12:37"]
[BlackClock "0:21:37"]

1. d4 {[%emt 0:00:00]} Nf6 {[%emt 0:00:05]} 2. Nf3 {[%emt 0:00:01]} e6 {[%emt 0:00:26]} 3. g3 {[%emt 0:00:18]} b5 {[%emt 0:00:25]} 4. Bg2 {[%emt 0:01:09]} d5 {[%emt 0:00:24]} 5. O-O {[%emt 0:00:35]} Nbd7 {[%emt 0:01:23]} 6. b3 {[%emt 0:03:21]} Be7 {[%emt 0:03:06]} 7. c4 {[%emt 0:05:54]} bxc4 {[%emt 0:02:54]} 8. bxc4 {[%emt 0:01:11]} c6 {[%emt 0:00:41]} 9. Qc2 {[%emt 0:06:01]} O-O {[%emt 0:00:44]} 10. Bf4 {[%emt 0:01:44]} Ba6 {[%emt 0:04:01]} 11. Nbd2 {[%emt 0:01:27]} c5 {[%emt 0:07:47]} 12. dxc5 {[%emt 0:07:07]} Nxc5 {[%emt 0:02:02]} 13. Rfe1 {[%emt 0:13:41]} Rc8 {[%emt 0:03:06]} 14. Rac1 {[%emt 0:05:35]} Nce4 {[%emt 0:30:57]} 15. Qa4 {[%emt 0:04:05]} Nc5 {[%emt 0:03:53]} 16. Qc2 {[%emt 0:03:14]} h6 {[%emt 0:00:08]} 17. h4 {[%emt 0:01:49]} Qa5 {[%emt 0:02:55]} 18. Qb1 {[%emt 0:03:36]} Nce4 {[%emt 0:01:41]} 19. Qb3 {[%emt 0:16:43]} Bb4 {[%emt 0:08:29]} 20. Qe3 {[%emt 0:08:46]} Ng4 {[%emt 0:03:09]} 21. Nb3 {[%emt 0:01:58]} Nxe3 {[%emt 0:01:27]} 22. Nxa5 {[%emt 0:00:08]} Nxg2 {[%emt 0:00:10]} 0-1